Workbook

Sheet C05 影像科影像技术技师
A1: 序号 | B1: 报名序号 | C1: 姓名 | D1: 身份证号 | E1: 岗位名称 | F1: 岗位代码 | G1: 考考场号 | H1: 抽签号 | I1: 原始面试成绩 | J1: 修正系数 | K1: 最终面试成绩 | L1: 是否进入资格复审
A2: 277 | B2: 52003050006 | C2: 赵雪 | D2: 5224241******14641 | E2: 影像科影像技术技师 | F2: C05 | G2: 第二考场 | H2: =VLOOKUP(C:C,[2]sheet1!$E$1:$F$65536,2,FALSE) -> 17 | I2: =VLOOKUP(H:H,[4]Sheet1!$A$5:$I$76,9,FALSE) -> 88.33 | J2: 1.04 | K2: =J2*I2 -> 92.09 | L2: 是
A3: 64 | B3: 52003050023 | C3: 周懿杨 | D3: 5002261******21210 | E3: 影像科影像技术技师 | F3: C05 | G3: 第一考场 | H3: =VLOOKUP(C:C,[1]sheet1!$E$1:$F$65536,2,FALSE) -> 59 | I3: =VLOOKUP(H:H,[3]Sheet1!$A$5:$K$79,11,FALSE) -> 95.00 | J3: 0.96 | K3: 91.28 | L3: 是
A4: 149 | B4: 52003050021 | C4: 何虹燕 | D4: 5201231******81226 | E4: 影像科影像技术技师 | F4: C05 | G4: 第一考场 | H4: =VLOOKUP(C:C,[1]sheet1!$E$1:$F$65536,2,FALSE) -> 150 | I4: =VLOOKUP(H:H,[3]Sheet1!$A$5:$K$79,11,FALSE) -> 94.00 | J4: 0.96 | K4: 90.31 | L4: 是
A5: 37 | B5: 52003050009 | C5: 彭超 | D5: 5224251******11555 | E5: 影像科影像技术技师 | F5: C05 | G5: 第一考场 | H5: =VLOOKUP(C:C,[1]sheet1!$E$1:$F$65536,2,FALSE) -> 146 | I5: =VLOOKUP(H:H,[3]Sheet1!$A$5:$K$79,11,FALSE) -> 91.67 | J5: 0.96 | K5: 88.07 | L5: 是
A6: 18 | B6: 52003050019 | C6: 熊禧宏 | D6: 5201032******86716 | E6: 影像科影像技术技师 | F6: C05 | G6: 第一考场 | H6: =VLOOKUP(C:C,[1]sheet1!$E$1:$F$65536,2,FALSE) -> 7 | I6: =VLOOKUP(H:H,[3]Sheet1!$A$5:$K$79,11,FALSE) -> 91.67 | J6: 0.96 | K6: 88.07 | L6: 是
A7: 261 | B7: 52003050088 | C7: 周涛 | D7: 5224281******5124X | E7: 影像科影像技术技师 | F7: C05 | G7: 第二考场 | H7: =VLOOKUP(C:C,[2]sheet1!$E$1:$F$65536,2,FALSE) -> 116 | I7: =VLOOKUP(H:H,[4]Sheet1!$A$5:$I$76,9,FALSE) -> 84.00 | J7: 1.04 | K7: 87.57
A8: 201 | B8: 52003050244 | C8: 袁小点 | D8: 5225011******67347 | E8: 影像科影像技术技师 | F8: C05 | G8: 第二考场 | H8: =VLOOKUP(C:C,[2]sheet1!$E$1:$F$65536,2,FALSE) -> 85 | I8: =VLOOKUP(H:H,[4]Sheet1!$A$5:$I$76,9,FALSE) -> 83.33 | J8: 1.04 | K8: 86.88
A9: 179 | B9: 52003050131 | C9: 谢沁玲 | D9: 5221212******91424 | E9: 影像科影像技术技师 | F9: C05 | G9: 第二考场 | H9: =VLOOKUP(C:C,[2]sheet1!$E$1:$F$65536,2,FALSE) -> 79 | I9: =VLOOKUP(H:H,[4]Sheet1!$A$5:$I$76,9,FALSE) -> 82.33 | J9: 1.04 | K9: 85.84
A10: 240 | B10: 52003050043 | C10: 赵婷婷 | D10: 5221221******77445 | E10: 影像科影像技术技师 | F10: C05 | G10: 第二考场 | H10: =VLOOKUP(C:C,[2]sheet1!$E$1:$F$65536,2,FALSE) -> 86 | I10: =VLOOKUP(H:H,[4]Sheet1!$A$5:$I$76,9,FALSE) -> 81.67 | J10: 1.04 | K10: 85.14
A11: 206 | B11: 52003050223 | C11: 胡雪 | D11: 5224261******07147 | E11: 影像科影像技术技师 | F11: C05 | G11: 第二考场 | H11: =VLOOKUP(C:C,[2]sheet1!$E$1:$F$65536,2,FALSE) -> 28 | I11: =VLOOKUP(H:H,[4]Sheet1!$A$5:$I$76,9,FALSE) -> 81.33 | J11: 1.04 | K11: 84.79
A12: 273 | B12: 52003050145 | C12: 刘芳 | D12: 5224251******66920 | E12: 影像科影像技术技师 | F12: C05 | G12: 第二考场 | H12: =VLOOKUP(C:C,[2]sheet1!$E$1:$F$65536,2,FALSE) -> 126 | I12: =VLOOKUP(H:H,[4]Sheet1!$A$5:$I$76,9,FALSE) -> 80.67 | J12: 1.04 | K12: 84.10
A13: 205 | B13: 52003050158 | C13: 郭涛涛 | D13: 5204242******80089 | E13: 影像科影像技术技师 | F13: C05 | G13: 第二考场 | H13: =VLOOKUP(C:C,[2]sheet1!$E$1:$F$65536,2,FALSE) -> 127 | I13: =VLOOKUP(H:H,[4]Sheet1!$A$5:$I$76,9,FALSE) -> 80.00 | J13: 1.04 | K13: 83.40
A14: 197 | B14: 52003050097 | C14: 骆林 | D14: 5221281******86515 | E14: 影像科影像技术技师 | F14: C05 | G14: 第二考场 | H14: =VLOOKUP(C:C,[2]sheet1!$E$1:$F$65536,2,FALSE) -> 106 | I14: =VLOOKUP(H:H,[4]Sheet1!$A$5:$I$76,9,FALSE) -> 79.33 | J14: 1.04 | K14: 82.71
A15: 223 | B15: 52003050062 | C15: 谢红 | D15: 5224221******50838 | E15: 影像科影像技术技师 | F15: C05 | G15: 第二考场 | H15: =VLOOKUP(C:C,[2]sheet1!$E$1:$F$65536,2,FALSE) -> 71 | I15: =VLOOKUP(H:H,[4]Sheet1!$A$5:$I$76,9,FALSE) -> 79.33 | J15: 1.04 | K15: 82.71
A16: 159 | B16: 52003050111 | C16: 李小明 | D16: 5224261******62057 | E16: 影像科影像技术技师 | F16: C05 | G16: 第二考场 | H16: =VLOOKUP(C:C,[2]sheet1!$E$1:$F$65536,2,FALSE) -> 18 | I16: =VLOOKUP(H:H,[4]Sheet1!$A$5:$I$76,9,FALSE) -> 79.00 | J16: 1.04 | K16: 82.36
A17: 160 | B17: 52003050176 | C17: 马小妮 | D17: 5221281******34024 | E17: 影像科影像技术技师 | F17: C05 | G17: 第二考场 | H17: =VLOOKUP(C:C,[2]sheet1!$E$1:$F$65536,2,FALSE) -> 125 | I17: =VLOOKUP(H:H,[4]Sheet1!$A$5:$I$76,9,FALSE) -> 79.00 | J17: 1.04 | K17: 82.36
A18: 233 | B18: 52003050102 | C18: 李国富 | D18: 5221311******3481X | E18: 影像科影像技术技师 | F18: C05 | G18: 第二考场 | H18: =VLOOKUP(C:C,[2]sheet1!$E$1:$F$65536,2,FALSE) -> 136 | I18: =VLOOKUP(H:H,[4]Sheet1!$A$5:$I$76,9,FALSE) -> 79.00 | J18: 1.04 | K18: 82.36
A19: 266 | B19: 52003050197 | C19: 吉祥 | D19: 5224012******1381X | E19: 影像科影像技术技师 | F19: C05 | G19: 第二考场 | H19: =VLOOKUP(C:C,[2]sheet1!$E$1:$F$65536,2,FALSE) -> 96 | I19: =VLOOKUP(H:H,[4]Sheet1!$A$5:$I$76,9,FALSE) -> 79.00 | J19: 1.04 | K19: 82.36
A20: 13 | B20: 52003050068 | C20: 朱琳 | D20: 4307031******91664 | E20: 影像科影像技术技师 | F20: C05 | G20: 第一考场 | H20: =VLOOKUP(C:C,[1]sheet1!$E$1:$F$65536,2,FALSE) -> 37 | I20: =VLOOKUP(H:H,[3]Sheet1!$A$5:$K$79,11,FALSE) -> 85.67 | J20: 0.96 | K20: 82.31
A21: 88 | B21: 52003050165 | C21: 田霞 | D21: 5221271******22060 | E21: 影像科影像技术技师 | F21: C05 | G21: 第一考场 | H21: =VLOOKUP(C:C,[1]sheet1!$E$1:$F$65536,2,FALSE) -> 68 | I21: =VLOOKUP(H:H,[3]Sheet1!$A$5:$K$79,11,FALSE) -> 85.67 | J21: 0.96 | K21: 82.31
A22: 38 | B22: 52003050050 | C22: 唐安凤 | D22: 5222271******07228 | E22: 影像科影像技术技师 | F22: C05 | G22: 第一考场 | H22: =VLOOKUP(C:C,[1]sheet1!$E$1:$F$65536,2,FALSE) -> 50 | I22: =VLOOKUP(H:H,[3]Sheet1!$A$5:$K$79,11,FALSE) -> 85.67 | J22: 0.96 | K22: 82.31
A23: 74 | B23: 52003050061 | C23: 彭军景 | D23: 5221211******87451 | E23: 影像科影像技术技师 | F23: C05 | G23: 第一考场 | H23: =VLOOKUP(C:C,[1]sheet1!$E$1:$F$65536,2,FALSE) -> 55 | I23: =VLOOKUP(H:H,[3]Sheet1!$A$5:$K$79,11,FALSE) -> 84.67 | J23: 0.96 | K23: 81.35
A24: 282 | B24: 52003050228 | C24: 林丽华 | D24: 5221221******01841 | E24: 影像科影像技术技师 | F24: C05 | G24: 第二考场 | H24: =VLOOKUP(C:C,[2]sheet1!$E$1:$F$65536,2,FALSE) -> 52 | I24: =VLOOKUP(H:H,[4]Sheet1!$A$5:$I$76,9,FALSE) -> 78.00 | J24: 1.04 | K24: 81.32
A25: 67 | B25: 52003050080 | C25: 陈青娜 | D25: 5221221******20866 | E25: 影像科影像技术技师 | F25: C05 | G25: 第一考场 | H25: =VLOOKUP(C:C,[1]sheet1!$E$1:$F$65536,2,FALSE) -> 82 | I25: =VLOOKUP(H:H,[3]Sheet1!$A$5:$K$79,11,FALSE) -> 84.33 | J25: 0.96 | K25: 81.03
A26: 72 | B26: 52003050058 | C26: 杨薇 | D26: 5002231******5666X | E26: 影像科影像技术技师 | F26: C05 | G26: 第一考场 | H26: =VLOOKUP(C:C,[1]sheet1!$E$1:$F$65536,2,FALSE) -> 140 | I26: =VLOOKUP(H:H,[3]Sheet1!$A$5:$K$79,11,FALSE) -> 84.33 | J26: 0.96 | K26: 81.03
A27: 209 | B27: 52003050037 | C27: 宋优 | D27: 5221252******81916 | E27: 影像科影像技术技师 | F27: C05 | G27: 第二考场 | H27: =VLOOKUP(C:C,[2]sheet1!$E$1:$F$65536,2,FALSE) -> 139 | I27: =VLOOKUP(H:H,[4]Sheet1!$A$5:$I$76,9,FALSE) -> 77.67 | J27: 1.04 | K27: 80.97
A28: 31 | B28: 52003050166 | C28: 范清颜 | D28: 5221221******06040 | E28: 影像科影像技术技师 | F28: C05 | G28: 第一考场 | H28: =VLOOKUP(C:C,[1]sheet1!$E$1:$F$65536,2,FALSE) -> 122 | I28: =VLOOKUP(H:H,[3]Sheet1!$A$5:$K$79,11,FALSE) -> 84.00 | J28: 0.96 | K28: 80.71
A29: 70 | B29: 52003050210 | C29: 刘伟伟 | D29: 5225291******62630 | E29: 影像科影像技术技师 | F29: C05 | G29: 第一考场 | H29: =VLOOKUP(C:C,[1]sheet1!$E$1:$F$65536,2,FALSE) -> 117 | I29: =VLOOKUP(H:H,[3]Sheet1!$A$5:$K$79,11,FALSE) -> 84.00 | J29: 0.96 | K29: 80.71
A30: 271 | B30: 52003050017 | C30: 王娜 | D30: 5222241******85026 | E30: 影像科影像技术技师 | F30: C05 | G30: 第二考场 | H30: =VLOOKUP(C:C,[2]sheet1!$E$1:$F$65536,2,FALSE) -> 120 | I30: =VLOOKUP(H:H,[4]Sheet1!$A$5:$I$76,9,FALSE) -> 77.33 | J30: 1.04 | K30: 80.62
A31: 75 | B31: 52003050109 | C31: 胡舟鹏 | D31: 5223281******60213 | E31: 影像科影像技术技师 | F31: C05 | G31: 第一考场 | H31: =VLOOKUP(C:C,[1]sheet1!$E$1:$F$65536,2,FALSE) -> 25 | I31: =VLOOKUP(H:H,[3]Sheet1!$A$5:$K$79,11,FALSE) -> 83.67 | J31: 0.96 | K31: 80.39
A32: 103 | B32: 52003050100 | C32: 徐瑞瑞 | D32: 5221231******42518 | E32: 影像科影像技术技师 | F32: C05 | G32: 第一考场 | H32: =VLOOKUP(C:C,[1]sheet1!$E$1:$F$65536,2,FALSE) -> 100 | I32: =VLOOKUP(H:H,[3]Sheet1!$A$5:$K$79,11,FALSE) -> 83.33 | J32: 0.96 | K32: 80.07
A33: 267 | B33: 52003050056 | C33: 何小凤 | D33: 5221211******87245 | E33: 影像科影像技术技师 | F33: C05 | G33: 第二考场 | H33: =VLOOKUP(C:C,[2]sheet1!$E$1:$F$65536,2,FALSE) -> 100 | I33: =VLOOKUP(H:H,[4]Sheet1!$A$5:$I$76,9,FALSE) -> 76.67 | J33: 1.04 | K33: 79.93
A34: 272 | B34: 52003050142 | C34: 冉飞艳 | D34: 5221261******76527 | E34: 影像科影像技术技师 | F34: C05 | G34: 第二考场 | H34: =VLOOKUP(C:C,[2]sheet1!$E$1:$F$65536,2,FALSE) -> 103 | I34: =VLOOKUP(H:H,[4]Sheet1!$A$5:$I$76,9,FALSE) -> 76.67 | J34: 1.04 | K34: 79.93
A35: 53 | B35: 52003050248 | C35: 罗倩 | D35: 5202211******81147 | E35: 影像科影像技术技师 | F35: C05 | G35: 第一考场 | H35: =VLOOKUP(C:C,[1]sheet1!$E$1:$F$65536,2,FALSE) -> 144 | I35: =VLOOKUP(H:H,[3]Sheet1!$A$5:$K$79,11,FALSE) -> 83.00 | J35: 0.96 | K35: 79.75
A36: 61 | B36: 52003050295 | C36: 王文芳 | D36: 5224241******01823 | E36: 影像科影像技术技师 | F36: C05 | G36: 第一考场 | H36: =VLOOKUP(C:C,[1]sheet1!$E$1:$F$65536,2,FALSE) -> 93 | I36: =VLOOKUP(H:H,[3]Sheet1!$A$5:$K$79,11,FALSE) -> 82.67 | J36: 0.96 | K36: 79.43
A37: 139 | B37: 52003050183 | C37: 侯嫚 | D37: 5224281******71444 | E37: 影像科影像技术技师 | F37: C05 | G37: 第一考场 | H37: =VLOOKUP(C:C,[1]sheet1!$E$1:$F$65536,2,FALSE) -> 107 | I37: =VLOOKUP(H:H,[3]Sheet1!$A$5:$K$79,11,FALSE) -> 82.67 | J37: 0.96 | K37: 79.43
A38: 129 | B38: 52003050090 | C38: 高宇航 | D38: 5224251******58171 | E38: 影像科影像技术技师 | F38: C05 | G38: 第一考场 | H38: =VLOOKUP(C:C,[1]sheet1!$E$1:$F$65536,2,FALSE) -> 11 | I38: =VLOOKUP(H:H,[3]Sheet1!$A$5:$K$79,11,FALSE) -> 82.00 | J38: 0.96 | K38: 78.79
A39: 7 | B39: 52003050038 | C39: 周子栋 | D39: 5221011******32018 | E39: 影像科影像技术技师 | F39: C05 | G39: 第一考场 | H39: =VLOOKUP(C:C,[1]sheet1!$E$1:$F$65536,2,FALSE) -> 52 | I39: =VLOOKUP(H:H,[3]Sheet1!$A$5:$K$79,11,FALSE) -> 82.00 | J39: 0.96 | K39: 78.79
A40: 188 | B40: 52003050039 | C40: 徐晓鹏 | D40: 5201231******10051 | E40: 影像科影像技术技师 | F40: C05 | G40: 第二考场 | H40: =VLOOKUP(C:C,[2]sheet1!$E$1:$F$65536,2,FALSE) -> 113 | I40: =VLOOKUP(H:H,[4]Sheet1!$A$5:$I$76,9,FALSE) -> 74.67 | J40: 1.04 | K40: 77.84
A41: 73 | B41: 52003050138 | C41: 刘泽君 | D41: 5201221******42211 | E41: 影像科影像技术技师 | F41: C05 | G41: 第一考场 | H41: =VLOOKUP(C:C,[1]sheet1!$E$1:$F$65536,2,FALSE) -> 15 | I41: =VLOOKUP(H:H,[3]Sheet1!$A$5:$K$79,11,FALSE) -> 80.33 | J41: 0.96 | K41: 77.18
A42: 264 | B42: 52003050167 | C42: 陈金刚 | D42: 5227311******51293 | E42: 影像科影像技术技师 | F42: C05 | G42: 第二考场 | H42: =VLOOKUP(C:C,[2]sheet1!$E$1:$F$65536,2,FALSE) -> 124 | I42: =VLOOKUP(H:H,[4]Sheet1!$A$5:$I$76,9,FALSE) -> 74.00 | J42: 1.04 | K42: 77.15
A43: 287 | B43: 52003050202 | C43: 张树 | D43: 5224222******2702X | E43: 影像科影像技术技师 | F43: C05 | G43: 第二考场 | H43: =VLOOKUP(C:C,[2]sheet1!$E$1:$F$65536,2,FALSE) -> 121 | I43: =VLOOKUP(H:H,[4]Sheet1!$A$5:$I$76,9,FALSE) -> 74.00 | J43: 1.04 | K43: 77.15
A44: 238 | B44: 52003050098 | C44: 杨正霞 | D44: 5227271******74523 | E44: 影像科影像技术技师 | F44: C05 | G44: 第二考场 | H44: =VLOOKUP(C:C,[2]sheet1!$E$1:$F$65536,2,FALSE) -> 133 | I44: =VLOOKUP(H:H,[4]Sheet1!$A$5:$I$76,9,FALSE) -> 73.67 | J44: 1.04 | K44: 76.80
A45: 162 | B45: 52003050010 | C45: 吴双林 | D45: 5222272******24813 | E45: 影像科影像技术技师 | F45: C05 | G45: 第二考场 | H45: =VLOOKUP(C:C,[2]sheet1!$E$1:$F$65536,2,FALSE) -> 129 | I45: =VLOOKUP(H:H,[4]Sheet1!$A$5:$I$76,9,FALSE) -> 73.33 | J45: 1.04 | K45: 76.45
A46: 173 | B46: 52003050024 | C46: 安晓芳 | D46: 5222281******52843 | E46: 影像科影像技术技师 | F46: C05 | G46: 第二考场 | H46: =VLOOKUP(C:C,[2]sheet1!$E$1:$F$65536,2,FALSE) -> 55 | I46: =VLOOKUP(H:H,[4]Sheet1!$A$5:$I$76,9,FALSE) -> 73.33 | J46: 1.04 | K46: 76.45
A47: 182 | B47: 52003050169 | C47: 邓方微 | D47: 5224231******37328 | E47: 影像科影像技术技师 | F47: C05 | G47: 第二考场 | H47: =VLOOKUP(C:C,[2]sheet1!$E$1:$F$65536,2,FALSE) -> 43 | I47: =VLOOKUP(H:H,[4]Sheet1!$A$5:$I$76,9,FALSE) -> 73.33 | J47: 1.04 | K47: 76.45
A48: 184 | B48: 52003050067 | C48: 安启运 | D48: 5224231******03625 | E48: 影像科影像技术技师 | F48: C05 | G48: 第二考场 | H48: =VLOOKUP(C:C,[2]sheet1!$E$1:$F$65536,2,FALSE) -> 9 | I48: =VLOOKUP(H:H,[4]Sheet1!$A$5:$I$76,9,FALSE) -> 73.33 | J48: 1.04 | K48: 76.45
A49: 3 | B49: 52003050178 | C49: 谢伟 | D49: 5222251******60413 | E49: 影像科影像技术技师 | F49: C05 | G49: 第一考场 | H49: =VLOOKUP(C:C,[1]sheet1!$E$1:$F$65536,2,FALSE) -> 123 | I49: =VLOOKUP(H:H,[3]Sheet1!$A$5:$K$79,11,FALSE) -> 78.67 | J49: 0.96 | K49: 75.58
A50: 69 | B50: 52003050189 | C50: 张杰 | D50: 5224011******47413 | E50: 影像科影像技术技师 | F50: C05 | G50: 第一考场 | H50: =VLOOKUP(C:C,[1]sheet1!$E$1:$F$65536,2,FALSE) -> 125 | I50: =VLOOKUP(H:H,[3]Sheet1!$A$5:$K$79,11,FALSE) -> 78.67 | J50: 0.96 | K50: 75.58
A51: 99 | B51: 52003050084 | C51: 王徐钊 | D51: 5221262******11510 | E51: 影像科影像技术技师 | F51: C05 | G51: 第一考场 | H51: =VLOOKUP(C:C,[1]sheet1!$E$1:$F$65536,2,FALSE) -> 128 | I51: =VLOOKUP(H:H,[3]Sheet1!$A$5:$K$79,11,FALSE) -> 78.67 | J51: 0.96 | K51: 75.58
A52: 144 | B52: 52003050188 | C52: 李登剑 | D52: 5221281******85032 | E52: 影像科影像技术技师 | F52: C05 | G52: 第一考场 | H52: =VLOOKUP(C:C,[1]sheet1!$E$1:$F$65536,2,FALSE) -> 126 | I52: =VLOOKUP(H:H,[3]Sheet1!$A$5:$K$79,11,FALSE) -> 78.33 | J52: 0.96 | K52: 75.26
A53: 94 | B53: 52003050289 | C53: 朱娴 | D53: 5201812******40822 | E53: 影像科影像技术技师 | F53: C05 | G53: 第一考场 | H53: =VLOOKUP(C:C,[1]sheet1!$E$1:$F$65536,2,FALSE) -> 112 | I53: =VLOOKUP(H:H,[3]Sheet1!$A$5:$K$79,11,FALSE) -> 78.33 | J53: 0.96 | K53: 75.26
A54: 171 | B54: 52003050211 | C54: 王鹏杰 | D54: 5222241******14810 | E54: 影像科影像技术技师 | F54: C05 | G54: 第二考场 | H54: =VLOOKUP(C:C,[2]sheet1!$E$1:$F$65536,2,FALSE) -> 132 | I54: =VLOOKUP(H:H,[4]Sheet1!$A$5:$I$76,9,FALSE) -> 72.00 | J54: 1.04 | K54: 75.06
A55: 226 | B55: 52003050149 | C55: 李婷婷 | D55: 5221241******43626 | E55: 影像科影像技术技师 | F55: C05 | G55: 第二考场 | H55: =VLOOKUP(C:C,[2]sheet1!$E$1:$F$65536,2,FALSE) -> 83 | I55: =VLOOKUP(H:H,[4]Sheet1!$A$5:$I$76,9,FALSE) -> 72.00 | J55: 1.04 | K55: 75.06
A56: 245 | B56: 52003050243 | C56: 何梅梅 | D56: 5222251******44844 | E56: 影像科影像技术技师 | F56: C05 | G56: 第二考场 | H56: =VLOOKUP(C:C,[2]sheet1!$E$1:$F$65536,2,FALSE) -> 47 | I56: =VLOOKUP(H:H,[4]Sheet1!$A$5:$I$76,9,FALSE) -> 72.00 | J56: 1.04 | K56: 75.06
A57: 100 | B57: 52003050106 | C57: 杨超 | D57: 5221211******94214 | E57: 影像科影像技术技师 | F57: C05 | G57: 第一考场 | H57: =VLOOKUP(C:C,[1]sheet1!$E$1:$F$65536,2,FALSE) -> 74 | I57: =VLOOKUP(H:H,[3]Sheet1!$A$5:$K$79,11,FALSE) -> 78.00 | J57: 0.96 | K57: 74.94
A58: 87 | B58: 52003050119 | C58: 李碧 | D58: 5221301******47245 | E58: 影像科影像技术技师 | F58: C05 | G58: 第一考场 | H58: =VLOOKUP(C:C,[1]sheet1!$E$1:$F$65536,2,FALSE) -> 79 | I58: =VLOOKUP(H:H,[3]Sheet1!$A$5:$K$79,11,FALSE) -> 78.00 | J58: 0.96 | K58: 74.94
A59: 58 | B59: 52003050002 | C59: 李敏 | D59: 5221301******73244 | E59: 影像科影像技术技师 | F59: C05 | G59: 第一考场 | H59: =VLOOKUP(C:C,[1]sheet1!$E$1:$F$65536,2,FALSE) -> 5 | I59: =VLOOKUP(H:H,[3]Sheet1!$A$5:$K$79,11,FALSE) -> 78.00 | J59: 0.96 | K59: 74.94
A60: 231 | B60: 52003050171 | C60: 唐若男 | D60: 5227222******22121 | E60: 影像科影像技术技师 | F60: C05 | G60: 第二考场 | H60: =VLOOKUP(C:C,[2]sheet1!$E$1:$F$65536,2,FALSE) -> 130 | I60: =VLOOKUP(H:H,[4]Sheet1!$A$5:$I$76,9,FALSE) -> 71.67 | J60: 1.04 | K60: 74.72
A61: 242 | B61: 52003050055 | C61: 赵发辉 | D61: 5201222******53819 | E61: 影像科影像技术技师 | F61: C05 | G61: 第二考场 | H61: =VLOOKUP(C:C,[2]sheet1!$E$1:$F$65536,2,FALSE) -> 117 | I61: =VLOOKUP(H:H,[4]Sheet1!$A$5:$I$76,9,FALSE) -> 71.67 | J61: 1.04 | K61: 74.72
A62: 256 | B62: 52003050033 | C62: 谢坤 | D62: 5223232******91319 | E62: 影像科影像技术技师 | F62: C05 | G62: 第二考场 | H62: =VLOOKUP(C:C,[2]sheet1!$E$1:$F$65536,2,FALSE) -> 72 | I62: =VLOOKUP(H:H,[4]Sheet1!$A$5:$I$76,9,FALSE) -> 71.67 | J62: 1.04 | K62: 74.72
A63: 23 | B63: 52003050263 | C63: 刘星 | D63: 5224262******85310 | E63: 影像科影像技术技师 | F63: C05 | G63: 第一考场 | H63: =VLOOKUP(C:C,[1]sheet1!$E$1:$F$65536,2,FALSE) -> 91 | I63: =VLOOKUP(H:H,[3]Sheet1!$A$5:$K$79,11,FALSE) -> 77.67 | J63: 0.96 | K63: 74.62
A64: 109 | B64: 52003050110 | C64: 杨锐 | D64: 5221301******2001X | E64: 影像科影像技术技师 | F64: C05 | G64: 第一考场 | H64: =VLOOKUP(C:C,[1]sheet1!$E$1:$F$65536,2,FALSE) -> 35 | I64: =VLOOKUP(H:H,[3]Sheet1!$A$5:$K$79,11,FALSE) -> 77.33 | J64: 0.96 | K64: 74.30
A65: 164 | B65: 52003050207 | C65: 龙艳 | D65: 5225291******14448 | E65: 影像科影像技术技师 | F65: C05 | G65: 第二考场 | H65: =VLOOKUP(C:C,[2]sheet1!$E$1:$F$65536,2,FALSE) -> 29 | I65: =VLOOKUP(H:H,[4]Sheet1!$A$5:$I$76,9,FALSE) -> 71.00 | J65: 1.04 | K65: 74.02
A66: 51 | B66: 52003050052 | C66: 王松善 | D66: 5303241******02359 | E66: 影像科影像技术技师 | F66: C05 | G66: 第一考场 | H66: =VLOOKUP(C:C,[1]sheet1!$E$1:$F$65536,2,FALSE) -> 97 | I66: =VLOOKUP(H:H,[3]Sheet1!$A$5:$K$79,11,FALSE) -> 77.00 | J66: 0.96 | K66: =J66*I66 -> 73.98
A67: 98 | B67: 52003050092 | C67: 程浩楠 | D67: 5221301******47231 | E67: 影像科影像技术技师 | F67: C05 | G67: 第一考场 | H67: =VLOOKUP(C:C,[1]sheet1!$E$1:$F$65536,2,FALSE) -> 115 | I67: =VLOOKUP(H:H,[3]Sheet1!$A$5:$K$79,11,FALSE) -> 77.00 | J67: 0.96 | K67: 73.98
A68: 167 | B68: 52003050146 | C68: 陈亭竹 | D68: 5201212******53822 | E68: 影像科影像技术技师 | F68: C05 | G68: 第二考场 | H68: =VLOOKUP(C:C,[2]sheet1!$E$1:$F$65536,2,FALSE) -> 101 | I68: =VLOOKUP(H:H,[4]Sheet1!$A$5:$I$76,9,FALSE) -> 70.67 | J68: 1.04 | K68: 73.67
A69: 10 | B69: 52003050224 | C69: 吴嫚 | D69: 5224011******77642 | E69: 影像科影像技术技师 | F69: C05 | G69: 第一考场 | H69: =VLOOKUP(C:C,[1]sheet1!$E$1:$F$65536,2,FALSE) -> 148 | I69: =VLOOKUP(H:H,[3]Sheet1!$A$5:$K$79,11,FALSE) -> 76.67 | J69: 0.96 | K69: 73.66
A70: 4 | B70: 52003050237 | C70: 董超 | D70: 5203271******56516 | E70: 影像科影像技术技师 | F70: C05 | G70: 第一考场 | H70: =VLOOKUP(C:C,[1]sheet1!$E$1:$F$65536,2,FALSE) -> 104 | I70: =VLOOKUP(H:H,[3]Sheet1!$A$5:$K$79,11,FALSE) -> 76.67 | J70: 0.96 | K70: 73.66
A71: 29 | B71: 52003050070 | C71: 何宇 | D71: 5221261******15139 | E71: 影像科影像技术技师 | F71: C05 | G71: 第一考场 | H71: =VLOOKUP(C:C,[1]sheet1!$E$1:$F$65536,2,FALSE) -> 139 | I71: =VLOOKUP(H:H,[3]Sheet1!$A$5:$K$79,11,FALSE) -> 76.67 | J71: 0.96 | K71: 73.66
A72: 126 | B72: 52003050129 | C72: 周彬 | D72: 5221311******3563X | E72: 影像科影像技术技师 | F72: C05 | G72: 第一考场 | H72: =VLOOKUP(C:C,[1]sheet1!$E$1:$F$65536,2,FALSE) -> 64 | I72: =VLOOKUP(H:H,[3]Sheet1!$A$5:$K$79,11,FALSE) -> 76.67 | J72: 0.96 | K72: 73.66
A73: 44 | B73: 52003050031 | C73: 杜欣 | D73: 5202211******59844 | E73: 影像科影像技术技师 | F73: C05 | G73: 第一考场 | H73: =VLOOKUP(C:C,[1]sheet1!$E$1:$F$65536,2,FALSE) -> 71 | I73: =VLOOKUP(H:H,[3]Sheet1!$A$5:$K$79,11,FALSE) -> 76.33 | J73: 0.96 | K73: 73.34
A74: 258 | B74: 52003050194 | C74: 陈小领 | D74: 5225301******11747 | E74: 影像科影像技术技师 | F74: C05 | G74: 第二考场 | H74: =VLOOKUP(C:C,[2]sheet1!$E$1:$F$65536,2,FALSE) -> 1 | I74: =VLOOKUP(H:H,[4]Sheet1!$A$5:$I$76,9,FALSE) -> 70.33 | J74: 1.04 | K74: 73.33
A75: 104 | B75: 52003050087 | C75: 靳光瑞 | D75: 5201031******91213 | E75: 影像科影像技术技师 | F75: C05 | G75: 第一考场 | H75: =VLOOKUP(C:C,[1]sheet1!$E$1:$F$65536,2,FALSE) -> 137 | I75: =VLOOKUP(H:H,[3]Sheet1!$A$5:$K$79,11,FALSE) -> 76.00 | J75: 0.96 | K75: 73.02
A76: 48 | B76: 52003050085 | C76: 简乐成 | D76: 5222251******74871 | E76: 影像科影像技术技师 | F76: C05 | G76: 第一考场 | H76: =VLOOKUP(C:C,[1]sheet1!$E$1:$F$65536,2,FALSE) -> 77 | I76: =VLOOKUP(H:H,[3]Sheet1!$A$5:$K$79,11,FALSE) -> 76.00 | J76: 0.96 | K76: 73.02
A77: 92 | B77: 52003050057 | C77: 刘欣益 | D77: 5221291******74549 | E77: 影像科影像技术技师 | F77: C05 | G77: 第一考场 | H77: =VLOOKUP(C:C,[1]sheet1!$E$1:$F$65536,2,FALSE) -> 32 | I77: =VLOOKUP(H:H,[3]Sheet1!$A$5:$K$79,11,FALSE) -> 76.00 | J77: 0.96 | K77: 73.02
A78: 110 | B78: 52003050007 | C78: 陈江涛 | D78: 5221302******96013 | E78: 影像科影像技术技师 | F78: C05 | G78: 第一考场 | H78: =VLOOKUP(C:C,[1]sheet1!$E$1:$F$65536,2,FALSE) -> 33 | I78: =VLOOKUP(H:H,[3]Sheet1!$A$5:$K$79,11,FALSE) -> 76.00 | J78: 0.96 | K78: 73.02
A79: 82 | B79: 52003050307 | C79: 朱敏 | D79: 5321281******01606 | E79: 影像科影像技术技师 | F79: C05 | G79: 第一考场 | H79: =VLOOKUP(C:C,[1]sheet1!$E$1:$F$65536,2,FALSE) -> 14 | I79: =VLOOKUP(H:H,[3]Sheet1!$A$5:$K$79,11,FALSE) -> 76.00 | J79: 0.96 | K79: 73.02
A80: 278 | B80: 52003050250 | C80: 罗通 | D80: 5222241******04430 | E80: 影像科影像技术技师 | F80: C05 | G80: 第二考场 | H80: =VLOOKUP(C:C,[2]sheet1!$E$1:$F$65536,2,FALSE) -> 11 | I80: =VLOOKUP(H:H,[4]Sheet1!$A$5:$I$76,9,FALSE) -> 70.00 | J80: 1.04 | K80: 72.98
A81: 35 | B81: 52003050044 | C81: 李鹏菲 | D81: 5226232******30068 | E81: 影像科影像技术技师 | F81: C05 | G81: 第一考场 | H81: =VLOOKUP(C:C,[1]sheet1!$E$1:$F$65536,2,FALSE) -> 120 | I81: =VLOOKUP(H:H,[3]Sheet1!$A$5:$K$79,11,FALSE) -> 75.67 | J81: 0.96 | K81: 72.70
A82: 157 | B82: 52003050185 | C82: 龙景涛 | D82: 5226281******26413 | E82: 影像科影像技术技师 | F82: C05 | G82: 第二考场 | H82: =VLOOKUP(C:C,[2]sheet1!$E$1:$F$65536,2,FALSE) -> 8 | I82: =VLOOKUP(H:H,[4]Sheet1!$A$5:$I$76,9,FALSE) -> 69.67 | J82: 1.04 | K82: 72.63
A83: 239 | B83: 52003050120 | C83: 赵玉彬 | D83: 5223242******40433 | E83: 影像科影像技术技师 | F83: C05 | G83: 第二考场 | H83: =VLOOKUP(C:C,[2]sheet1!$E$1:$F$65536,2,FALSE) -> 33 | I83: =VLOOKUP(H:H,[4]Sheet1!$A$5:$I$76,9,FALSE) -> 69.67 | J83: 1.04 | K83: 72.63
A84: 68 | B84: 52003050015 | C84: 郭洋 | D84: 5224281******20033 | E84: 影像科影像技术技师 | F84: C05 | G84: 第一考场 | H84: =VLOOKUP(C:C,[1]sheet1!$E$1:$F$65536,2,FALSE) -> 111 | I84: =VLOOKUP(H:H,[3]Sheet1!$A$5:$K$79,11,FALSE) -> 75.33 | J84: 0.96 | K84: 72.38
A85: 101 | B85: 52003050182 | C85: 程静 | D85: 5221302******10116 | E85: 影像科影像技术技师 | F85: C05 | G85: 第一考场 | H85: =VLOOKUP(C:C,[1]sheet1!$E$1:$F$65536,2,FALSE) -> 44 | I85: =VLOOKUP(H:H,[3]Sheet1!$A$5:$K$79,11,FALSE) -> 75.33 | J85: 0.96 | K85: 72.38
A86: 204 | B86: 52003050209 | C86: 肖华玉 | D86: 5224261******50083 | E86: 影像科影像技术技师 | F86: C05 | G86: 第二考场 | H86: =VLOOKUP(C:C,[2]sheet1!$E$1:$F$65536,2,FALSE) -> 92 | I86: =VLOOKUP(H:H,[4]Sheet1!$A$5:$I$76,9,FALSE) -> 69.33 | J86: 1.04 | K86: 72.28
A87: 288 | B87: 52003050306 | C87: 张凤云 | D87: 5222211******12423 | E87: 影像科影像技术技师 | F87: C05 | G87: 第二考场 | H87: =VLOOKUP(C:C,[2]sheet1!$E$1:$F$65536,2,FALSE) -> 137 | I87: =VLOOKUP(H:H,[4]Sheet1!$A$5:$I$76,9,FALSE) -> 69.33 | J87: 1.04 | K87: 72.28
A88: 147 | B88: 52003050101 | C88: 朱代飞 | D88: 5221321******03833 | E88: 影像科影像技术技师 | F88: C05 | G88: 第一考场 | H88: =VLOOKUP(C:C,[1]sheet1!$E$1:$F$65536,2,FALSE) -> 87 | I88: =VLOOKUP(H:H,[3]Sheet1!$A$5:$K$79,11,FALSE) -> 75.00 | J88: 0.96 | K88: 72.06
A89: 174 | B89: 52003050115 | C89: 李玉娥 | D89: 5224261******84029 | E89: 影像科影像技术技师 | F89: C05 | G89: 第二考场 | H89: =VLOOKUP(C:C,[2]sheet1!$E$1:$F$65536,2,FALSE) -> 20 | I89: =VLOOKUP(H:H,[4]Sheet1!$A$5:$I$76,9,FALSE) -> 69.00 | J89: 1.04 | K89: 71.94
A90: 181 | B90: 52003050135 | C90: 黄雄 | D90: 5224251******14511 | E90: 影像科影像技术技师 | F90: C05 | G90: 第二考场 | H90: =VLOOKUP(C:C,[2]sheet1!$E$1:$F$65536,2,FALSE) -> 99 | I90: =VLOOKUP(H:H,[4]Sheet1!$A$5:$I$76,9,FALSE) -> 69.00 | J90: 1.04 | K90: 71.94
A91: 26 | B91: 52003050114 | C91: 左洪 | D91: 5202031******30029 | E91: 影像科影像技术技师 | F91: C05 | G91: 第一考场 | H91: =VLOOKUP(C:C,[1]sheet1!$E$1:$F$65536,2,FALSE) -> 129 | I91: =VLOOKUP(H:H,[3]Sheet1!$A$5:$K$79,11,FALSE) -> 74.67 | J91: 0.96 | K91: 71.74
A92: 79 | B92: 52003050199 | C92: 郭莎 | D92: 5224231******64343 | E92: 影像科影像技术技师 | F92: C05 | G92: 第一考场 | H92: =VLOOKUP(C:C,[1]sheet1!$E$1:$F$65536,2,FALSE) -> 4 | I92: =VLOOKUP(H:H,[3]Sheet1!$A$5:$K$79,11,FALSE) -> 74.67 | J92: 0.96 | K92: 71.74
A93: 95 | B93: 52003050027 | C93: 高华佳 | D93: 5224241******40018 | E93: 影像科影像技术技师 | F93: C05 | G93: 第一考场 | H93: =VLOOKUP(C:C,[1]sheet1!$E$1:$F$65536,2,FALSE) -> 145 | I93: =VLOOKUP(H:H,[3]Sheet1!$A$5:$K$79,11,FALSE) -> 74.67 | J93: 0.96 | K93: 71.74
A94: 113 | B94: 52003050030 | C94: 罗松 | D94: 5221211******85317 | E94: 影像科影像技术技师 | F94: C05 | G94: 第一考场 | H94: =VLOOKUP(C:C,[1]sheet1!$E$1:$F$65536,2,FALSE) -> 69 | I94: =VLOOKUP(H:H,[3]Sheet1!$A$5:$K$79,11,FALSE) -> 74.67 | J94: 0.96 | K94: 71.74
A95: 77 | B95: 52003050059 | C95: 魏鑫 | D95: 5224221******8401X | E95: 影像科影像技术技师 | F95: C05 | G95: 第一考场 | H95: =VLOOKUP(C:C,[1]sheet1!$E$1:$F$65536,2,FALSE) -> 141 | I95: =VLOOKUP(H:H,[3]Sheet1!$A$5:$K$79,11,FALSE) -> 74.67 | J95: 0.96 | K95: 71.74
A96: 227 | B96: 52003050301 | C96: 王真样 | D96: 5223282******44927 | E96: 影像科影像技术技师 | F96: C05 | G96: 第二考场 | H96: =VLOOKUP(C:C,[2]sheet1!$E$1:$F$65536,2,FALSE) -> 58 | I96: =VLOOKUP(H:H,[4]Sheet1!$A$5:$I$76,9,FALSE) -> 68.67 | J96: 1.04 | K96: 71.59
A97: 241 | B97: 52003050298 | C97: 鲁朝海 | D97: 5224241******00678 | E97: 影像科影像技术技师 | F97: C05 | G97: 第二考场 | H97: =VLOOKUP(C:C,[2]sheet1!$E$1:$F$65536,2,FALSE) -> 74 | I97: =VLOOKUP(H:H,[4]Sheet1!$A$5:$I$76,9,FALSE) -> 68.67 | J97: 1.04 | K97: 71.59
A98: 248 | B98: 52003050035 | C98: 朱丽 | D98: 5224271******94580 | E98: 影像科影像技术技师 | F98: C05 | G98: 第二考场 | H98: =VLOOKUP(C:C,[2]sheet1!$E$1:$F$65536,2,FALSE) -> 61 | I98: =VLOOKUP(H:H,[4]Sheet1!$A$5:$I$76,9,FALSE) -> 68.67 | J98: 1.04 | K98: 71.59
A99: 145 | B99: 52003050227 | C99: 肖清园 | D99: 5221231******00529 | E99: 影像科影像技术技师 | F99: C05 | G99: 第一考场 | H99: =VLOOKUP(C:C,[1]sheet1!$E$1:$F$65536,2,FALSE) -> 135 | I99: =VLOOKUP(H:H,[3]Sheet1!$A$5:$K$79,11,FALSE) -> 74.00 | J99: 0.96 | K99: 71.10
A100: 105 | B100: 52003050236 | C100: 孙雷 | D100: 5224251******30071 | E100: 影像科影像技术技师 | F100: C05 | G100: 第一考场 | H100: =VLOOKUP(C:C,[1]sheet1!$E$1:$F$65536,2,FALSE) -> 42 | I100: =VLOOKUP(H:H,[3]Sheet1!$A$5:$K$79,11,FALSE) -> 74.00 | J100: 0.96 | K100: 71.10
A101: 269 | B101: 52003050225 | C101: 张聪 | D101: 5224281******83009 | E101: 影像科影像技术技师 | F101: C05 | G101: 第二考场 | H101: =VLOOKUP(C:C,[2]sheet1!$E$1:$F$65536,2,FALSE) -> 105 | I101: =VLOOKUP(H:H,[4]Sheet1!$A$5:$I$76,9,FALSE) -> 68.00 | J101: 1.04 | K101: 70.89
A102: 281 | B102: 52003050077 | C102: 蔡海珊 | D102: 5221221******34820 | E102: 影像科影像技术技师 | F102: C05 | G102: 第二考场 | H102: =VLOOKUP(C:C,[2]sheet1!$E$1:$F$65536,2,FALSE) -> 39 | I102: =VLOOKUP(H:H,[4]Sheet1!$A$5:$I$76,9,FALSE) -> 68.00 | J102: 1.04 | K102: 70.89
A103: 78 | B103: 52003050313 | C103: 陈兴理 | D103: 5224251******80134 | E103: 影像科影像技术技师 | F103: C05 | G103: 第一考场 | H103: =VLOOKUP(C:C,[1]sheet1!$E$1:$F$65536,2,FALSE) -> 108 | I103: =VLOOKUP(H:H,[3]Sheet1!$A$5:$K$79,11,FALSE) -> 73.67 | J103: 0.96 | K103: 70.78
A104: 42 | B104: 52003050265 | C104: 秦琴 | D104: 5221302******04064 | E104: 影像科影像技术技师 | F104: C05 | G104: 第一考场 | H104: =VLOOKUP(C:C,[1]sheet1!$E$1:$F$65536,2,FALSE) -> 54 | I104: =VLOOKUP(H:H,[3]Sheet1!$A$5:$K$79,11,FALSE) -> 73.67 | J104: 0.96 | K104: 70.78
A105: 93 | B105: 52003050172 | C105: 张婷婷 | D105: 5222281******31948 | E105: 影像科影像技术技师 | F105: C05 | G105: 第一考场 | H105: =VLOOKUP(C:C,[1]sheet1!$E$1:$F$65536,2,FALSE) -> 6 | I105: =VLOOKUP(H:H,[3]Sheet1!$A$5:$K$79,11,FALSE) -> 73.67 | J105: 0.96 | K105: 70.78
A106: 286 | B106: 52003050014 | C106: 张仕海 | D106: 5221211******50034 | E106: 影像科影像技术技师 | F106: C05 | G106: 第二考场 | H106: =VLOOKUP(C:C,[2]sheet1!$E$1:$F$65536,2,FALSE) -> 77 | I106: =VLOOKUP(H:H,[4]Sheet1!$A$5:$I$76,9,FALSE) -> 67.67 | J106: 1.04 | K106: 70.55
A107: 63 | B107: 52003050071 | C107: 罗欢欢 | D107: 5221241******63662 | E107: 影像科影像技术技师 | F107: C05 | G107: 第一考场 | H107: =VLOOKUP(C:C,[1]sheet1!$E$1:$F$65536,2,FALSE) -> 142 | I107: =VLOOKUP(H:H,[3]Sheet1!$A$5:$K$79,11,FALSE) -> 73.33 | J107: 0.96 | K107: 70.46
A108: 118 | B108: 52003050078 | C108: 张良银 | D108: 5221211******10832 | E108: 影像科影像技术技师 | F108: C05 | G108: 第一考场 | H108: =VLOOKUP(C:C,[1]sheet1!$E$1:$F$65536,2,FALSE) -> 88 | I108: =VLOOKUP(H:H,[3]Sheet1!$A$5:$K$79,11,FALSE) -> 73.33 | J108: 0.96 | K108: 70.46
A109: 143 | B109: 52003050121 | C109: 周辉 | D109: 5227311******58653 | E109: 影像科影像技术技师 | F109: C05 | G109: 第一考场 | H109: =VLOOKUP(C:C,[1]sheet1!$E$1:$F$65536,2,FALSE) -> 105 | I109: =VLOOKUP(H:H,[3]Sheet1!$A$5:$K$79,11,FALSE) -> 73.33 | J109: 0.96 | K109: 70.46
A110: 114 | B110: 52003050255 | C110: 赵琎焘 | D110: 5321281******20332 | E110: 影像科影像技术技师 | F110: C05 | G110: 第一考场 | H110: =VLOOKUP(C:C,[1]sheet1!$E$1:$F$65536,2,FALSE) -> 73 | I110: =VLOOKUP(H:H,[3]Sheet1!$A$5:$K$79,11,FALSE) -> 73.33 | J110: 0.96 | K110: 70.46
A111: 56 | B111: 52003050215 | C111: 韦国将 | D111: 5223261******31616 | E111: 影像科影像技术技师 | F111: C05 | G111: 第一考场 | H111: =VLOOKUP(C:C,[1]sheet1!$E$1:$F$65536,2,FALSE) -> 66 | I111: =VLOOKUP(H:H,[3]Sheet1!$A$5:$K$79,11,FALSE) -> 73.33 | J111: 0.96 | K111: 70.46
A112: 124 | B112: 52003050113 | C112: 石红 | D112: 5224251******2692X | E112: 影像科影像技术技师 | F112: C05 | G112: 第一考场 | H112: =VLOOKUP(C:C,[1]sheet1!$E$1:$F$65536,2,FALSE) -> 2 | I112: =VLOOKUP(H:H,[3]Sheet1!$A$5:$K$79,11,FALSE) -> 73.33 | J112: 0.96 | K112: 70.46
A113: 219 | B113: 52003050016 | C113: 梁运 | D113: 5222291******62036 | E113: 影像科影像技术技师 | F113: C05 | G113: 第二考场 | H113: =VLOOKUP(C:C,[2]sheet1!$E$1:$F$65536,2,FALSE) -> 104 | I113: =VLOOKUP(H:H,[4]Sheet1!$A$5:$I$76,9,FALSE) -> 67.00 | J113: 1.04 | K113: 69.85
A114: 150 | B114: 52003050029 | C114: 陈松 | D114: 5221271******96518 | E114: 影像科影像技术技师 | F114: C05 | G114: 第一考场 | H114: =VLOOKUP(C:C,[1]sheet1!$E$1:$F$65536,2,FALSE) -> 46 | I114: =VLOOKUP(H:H,[3]Sheet1!$A$5:$K$79,11,FALSE) -> 72.67 | J114: 0.96 | K114: 69.82
A115: 200 | B115: 52003050251 | C115: 王皓旭 | D115: 5221271******8701X | E115: 影像科影像技术技师 | F115: C05 | G115: 第二考场 | H115: =VLOOKUP(C:C,[2]sheet1!$E$1:$F$65536,2,FALSE) -> 123 | I115: =VLOOKUP(H:H,[4]Sheet1!$A$5:$I$76,9,FALSE) -> 66.67 | J115: 1.04 | K115: 69.50
A116: 107 | B116: 52003050201 | C116: 张琳琳 | D116: 5221212******37049 | E116: 影像科影像技术技师 | F116: C05 | G116: 第一考场 | H116: =VLOOKUP(C:C,[1]sheet1!$E$1:$F$65536,2,FALSE) -> 19 | I116: =VLOOKUP(H:H,[3]Sheet1!$A$5:$K$79,11,FALSE) -> 72.33 | J116: 0.96 | K116: 69.50
A117: 2 | B117: 52003050213 | C117: 常国印 | D117: 5321281******00636 | E117: 影像科影像技术技师 | F117: C05 | G117: 第一考场 | H117: =VLOOKUP(C:C,[1]sheet1!$E$1:$F$65536,2,FALSE) -> 138 | I117: =VLOOKUP(H:H,[3]Sheet1!$A$5:$K$79,11,FALSE) -> 72.00 | J117: 0.96 | K117: 69.18
A118: 169 | B118: 52003050256 | C118: 黄松 | D118: 5222222******7042X | E118: 影像科影像技术技师 | F118: C05 | G118: 第二考场 | H118: =VLOOKUP(C:C,[2]sheet1!$E$1:$F$65536,2,FALSE) -> 107 | I118: =VLOOKUP(H:H,[4]Sheet1!$A$5:$I$76,9,FALSE) -> 66.33 | J118: 1.04 | K118: 69.16
A119: 275 | B119: 52003050271 | C119: 刘继明 | D119: 5222251******12830 | E119: 影像科影像技术技师 | F119: C05 | G119: 第二考场 | H119: =VLOOKUP(C:C,[2]sheet1!$E$1:$F$65536,2,FALSE) -> 13 | I119: =VLOOKUP(H:H,[4]Sheet1!$A$5:$I$76,9,FALSE) -> 66.33 | J119: 1.04 | K119: 69.16
A120: 193 | B120: 52003050214 | C120: 谷俊 | D120: 5224271******10017 | E120: 影像科影像技术技师 | F120: C05 | G120: 第二考场 | H120: =VLOOKUP(C:C,[2]sheet1!$E$1:$F$65536,2,FALSE) -> 34 | I120: =VLOOKUP(H:H,[4]Sheet1!$A$5:$I$76,9,FALSE) -> 66.00 | J120: 1.04 | K120: 68.81
A121: 166 | B121: 52003050028 | C121: 邓柳 | D121: 5224231******98965 | E121: 影像科影像技术技师 | F121: C05 | G121: 第二考场 | H121: =VLOOKUP(C:C,[2]sheet1!$E$1:$F$65536,2,FALSE) -> 111 | I121: =VLOOKUP(H:H,[4]Sheet1!$A$5:$I$76,9,FALSE) -> 65.67 | J121: 1.04 | K121: 68.46
A122: 235 | B122: 52003050147 | C122: 张智慧 | D122: 5222271******12428 | E122: 影像科影像技术技师 | F122: C05 | G122: 第二考场 | H122: =VLOOKUP(C:C,[2]sheet1!$E$1:$F$65536,2,FALSE) -> 110 | I122: =VLOOKUP(H:H,[4]Sheet1!$A$5:$I$76,9,FALSE) -> 65.67 | J122: 1.04 | K122: 68.46
A123: 259 | B123: 52003050292 | C123: 任家乐 | D123: 6228251******90014 | E123: 影像科影像技术技师 | F123: C05 | G123: 第二考场 | H123: =VLOOKUP(C:C,[2]sheet1!$E$1:$F$65536,2,FALSE) -> 102 | I123: =VLOOKUP(H:H,[4]Sheet1!$A$5:$I$76,9,FALSE) -> 65.67 | J123: 1.04 | K123: 68.46
A124: 176 | B124: 52003050148 | C124: 冯新亚 | D124: 5221232******32019 | E124: 影像科影像技术技师 | F124: C05 | G124: 第二考场 | H124: =VLOOKUP(C:C,[2]sheet1!$E$1:$F$65536,2,FALSE) -> 68 | I124: =VLOOKUP(H:H,[4]Sheet1!$A$5:$I$76,9,FALSE) -> 65.33 | J124: 1.04 | K124: 68.11
A125: 128 | B125: 52003050238 | C125: 刘粤东 | D125: 5223241******05615 | E125: 影像科影像技术技师 | F125: C05 | G125: 第一考场 | H125: =VLOOKUP(C:C,[1]sheet1!$E$1:$F$65536,2,FALSE) -> 47 | I125: =VLOOKUP(H:H,[3]Sheet1!$A$5:$K$79,11,FALSE) -> 70.67 | J125: 0.96 | K125: 67.90
A126: 220 | B126: 52003050293 | C126: 李旭东 | D126: 5221261******81016 | E126: 影像科影像技术技师 | F126: C05 | G126: 第二考场 | H126: =VLOOKUP(C:C,[2]sheet1!$E$1:$F$65536,2,FALSE) -> 40 | I126: =VLOOKUP(H:H,[4]Sheet1!$A$5:$I$76,9,FALSE) -> 64.67 | J126: 1.04 | K126: 67.42
A127: 156 | B127: 52003050229 | C127: 尹尹 | D127: 5201021******80828 | E127: 影像科影像技术技师 | F127: C05 | G127: 第二考场 | H127: =VLOOKUP(C:C,[2]sheet1!$E$1:$F$65536,2,FALSE) -> 87 | I127: =VLOOKUP(H:H,[4]Sheet1!$A$5:$I$76,9,FALSE) -> 63.67 | J127: 1.04 | K127: 66.37
A128: 120 | B128: 52003050001 | C128: 刘叶 | D128: 5202011******04848 | E128: 影像科影像技术技师 | F128: C05 | G128: 第一考场 | H128: =VLOOKUP(C:C,[1]sheet1!$E$1:$F$65536,2,FALSE) -> 28 | I128: =VLOOKUP(H:H,[3]Sheet1!$A$5:$K$79,11,FALSE) -> 69.00 | J128: 0.96 | K128: 66.30
A129: 154 | B129: 52003050277 | C129: 王志明 | D129: 5224262******82019 | E129: 影像科影像技术技师 | F129: C05 | G129: 第二考场 | H129: =VLOOKUP(C:C,[2]sheet1!$E$1:$F$65536,2,FALSE) -> 81 | I129: =VLOOKUP(H:H,[4]Sheet1!$A$5:$I$76,9,FALSE) -> 63.33 | J129: 1.04 | K129: 66.03
A130: 96 | B130: 52003050093 | C130: 吴泓霖 | D130: 5227011******80712 | E130: 影像科影像技术技师 | F130: C05 | G130: 第一考场 | H130: =VLOOKUP(C:C,[1]sheet1!$E$1:$F$65536,2,FALSE) -> 103 | I130: =VLOOKUP(H:H,[3]Sheet1!$A$5:$K$79,11,FALSE) -> 68.67 | J130: 0.96 | K130: =J130*I130 -> 65.97
A131: 21 | B131: 52003050258 | C131: 张中香 | D131: 5221211******02622 | E131: 影像科影像技术技师 | F131: C05 | G131: 第一考场 | H131: =VLOOKUP(C:C,[1]sheet1!$E$1:$F$65536,2,FALSE) -> 49 | I131: =VLOOKUP(H:H,[3]Sheet1!$A$5:$K$79,11,FALSE) -> 68.67 | J131: 0.96 | K131: 65.97
A132: 225 | B132: 52003050279 | C132: 黄念 | D132: 5223241******94828 | E132: 影像科影像技术技师 | F132: C05 | G132: 第二考场 | H132: =VLOOKUP(C:C,[2]sheet1!$E$1:$F$65536,2,FALSE) -> 108 | I132: =VLOOKUP(H:H,[4]Sheet1!$A$5:$I$76,9,FALSE) -> 63.00 | J132: 1.04 | K132: 65.68
A133: 111 | B133: 52003050048 | C133: 文凯松 | D133: 5222292******9001X | E133: 影像科影像技术技师 | F133: C05 | G133: 第一考场 | H133: =VLOOKUP(C:C,[1]sheet1!$E$1:$F$65536,2,FALSE) -> 1 | I133: =VLOOKUP(H:H,[3]Sheet1!$A$5:$K$79,11,FALSE) -> 68.33 | J133: 0.96 | K133: 65.65
A134: 121 | B134: 52003050272 | C134: 王丽钦 | D134: 5224242******11228 | E134: 影像科影像技术技师 | F134: C05 | G134: 第一考场 | H134: =VLOOKUP(C:C,[1]sheet1!$E$1:$F$65536,2,FALSE) -> 48 | I134: =VLOOKUP(H:H,[3]Sheet1!$A$5:$K$79,11,FALSE) -> 67.67 | J134: 0.96 | K134: 65.01
A135: 185 | B135: 52003050219 | C135: 王鑫 | D135: 5130221******85178 | E135: 影像科影像技术技师 | F135: C05 | G135: 第二考场 | H135: =VLOOKUP(C:C,[2]sheet1!$E$1:$F$65536,2,FALSE) -> 2 | I135: =VLOOKUP(H:H,[4]Sheet1!$A$5:$I$76,9,FALSE) -> 62.33 | J135: 1.04 | K135: 64.98
A136: 211 | B136: 52003050012 | C136: 任小莉 | D136: 5221271******96528 | E136: 影像科影像技术技师 | F136: C05 | G136: 第二考场 | H136: =VLOOKUP(C:C,[2]sheet1!$E$1:$F$65536,2,FALSE) -> 32 | I136: =VLOOKUP(H:H,[4]Sheet1!$A$5:$I$76,9,FALSE) -> 62.33 | J136: 1.04 | K136: 64.98
A137: 177 | B137: 52003050164 | C137: 娄阁琳 | D137: 5221221******53627 | E137: 影像科影像技术技师 | F137: C05 | G137: 第二考场 | H137: =VLOOKUP(C:C,[2]sheet1!$E$1:$F$65536,2,FALSE) -> 31 | I137: =VLOOKUP(H:H,[4]Sheet1!$A$5:$I$76,9,FALSE) -> 62.00 | J137: 1.04 | K137: 64.64
A138: 199 | B138: 52003050053 | C138: 王锐 | D138: 5303241******51718 | E138: 影像科影像技术技师 | F138: C05 | G138: 第二考场 | H138: =VLOOKUP(C:C,[2]sheet1!$E$1:$F$65536,2,FALSE) -> 49 | I138: =VLOOKUP(H:H,[4]Sheet1!$A$5:$I$76,9,FALSE) -> 62.00 | J138: 1.04 | K138: 64.64
A139: 255 | B139: 52003050096 | C139: 田鑫 | D139: 5201212******33416 | E139: 影像科影像技术技师 | F139: C05 | G139: 第二考场 | H139: =VLOOKUP(C:C,[2]sheet1!$E$1:$F$65536,2,FALSE) -> 70 | I139: =VLOOKUP(H:H,[4]Sheet1!$A$5:$I$76,9,FALSE) -> 61.67 | J139: 1.04 | K139: 64.29
A140: 280 | B140: 52003050051 | C140: 莫文明 | D140: 5226361******71419 | E140: 影像科影像技术技师 | F140: C05 | G140: 第二考场 | H140: =VLOOKUP(C:C,[2]sheet1!$E$1:$F$65536,2,FALSE) -> 26 | I140: =VLOOKUP(H:H,[4]Sheet1!$A$5:$I$76,9,FALSE) -> 61.67 | J140: 1.04 | K140: 64.29
A141: 17 | B141: 52003050127 | C141: 彭绍海 | D141: 5226292******44618 | E141: 影像科影像技术技师 | F141: C05 | G141: 第一考场 | H141: =VLOOKUP(C:C,[1]sheet1!$E$1:$F$65536,2,FALSE) -> 31 | I141: =VLOOKUP(H:H,[3]Sheet1!$A$5:$K$79,11,FALSE) -> 66.67 | J141: 0.96 | K141: 64.05
A142: 49 | B142: 52003050268 | C142: 佘贵远 | D142: 5227281******81818 | E142: 影像科影像技术技师 | F142: C05 | G142: 第一考场 | H142: =VLOOKUP(C:C,[1]sheet1!$E$1:$F$65536,2,FALSE) -> 67 | I142: =VLOOKUP(H:H,[3]Sheet1!$A$5:$K$79,11,FALSE) -> 66.33 | J142: 0.96 | K142: 63.73
A143: 216 | B143: 52003050308 | C143: 谢明珺 | D143: 5201031******8161X | E143: 影像科影像技术技师 | F143: C05 | G143: 第二考场 | H143: =VLOOKUP(C:C,[2]sheet1!$E$1:$F$65536,2,FALSE) -> 36 | I143: =VLOOKUP(H:H,[4]Sheet1!$A$5:$I$76,9,FALSE) -> 60.67 | J143: 1.04 | K143: 63.25
A144: 221 | B144: 52003050025 | C144: 吴洁 | D144: 5002331******42628 | E144: 影像科影像技术技师 | F144: C05 | G144: 第二考场 | H144: =VLOOKUP(C:C,[2]sheet1!$E$1:$F$65536,2,FALSE) -> 51 | I144: =VLOOKUP(H:H,[4]Sheet1!$A$5:$I$76,9,FALSE) -> 60.67 | J144: 1.04 | K144: 63.25
A145: 253 | B145: 52003050170 | C145: 甘健 | D145: 5224281******44634 | E145: 影像科影像技术技师 | F145: C05 | G145: 第二考场 | H145: =VLOOKUP(C:C,[2]sheet1!$E$1:$F$65536,2,FALSE) -> 88 | I145: =VLOOKUP(H:H,[4]Sheet1!$A$5:$I$76,9,FALSE) -> 60.67 | J145: 1.04 | K145: 63.25
A146: 244 | B146: 52003050047 | C146: 丁少兰 | D146: 5226222******12520 | E146: 影像科影像技术技师 | F146: C05 | G146: 第二考场 | H146: =VLOOKUP(C:C,[2]sheet1!$E$1:$F$65536,2,FALSE) -> 50 | I146: =VLOOKUP(H:H,[4]Sheet1!$A$5:$I$76,9,FALSE) -> 60.00 | J146: 1.04 | K146: 62.55
A147: 141 | B147: 52003050282 | C147: 吴昊 | D147: 5202211******63478 | E147: 影像科影像技术技师 | F147: C05 | G147: 第一考场 | H147: =VLOOKUP(C:C,[1]sheet1!$E$1:$F$65536,2,FALSE) -> 36 | I147: =VLOOKUP(H:H,[3]Sheet1!$A$5:$K$79,11,FALSE) -> 64.33 | J147: 0.96 | K147: 61.81
A148: 76 | B148: 52003050162 | C148: 肖丹 | D148: 5202021******43222 | E148: 影像科影像技术技师 | F148: C05 | G148: 第一考场 | H148: =VLOOKUP(C:C,[1]sheet1!$E$1:$F$65536,2,FALSE) -> 86 | I148: =VLOOKUP(H:H,[3]Sheet1!$A$5:$K$79,11,FALSE) -> 62.33 | J148: 0.96 | K148: 59.89
A149: 1 | B149: 52003050140 | C149: 邓聪颖 | D149: 5221281******0351X | E149: 影像科影像技术技师 | F149: C05 | G149: 第一考场 | H149: =VLOOKUP(C:C,[1]sheet1!$E$1:$F$65536,2,FALSE) -> 21 | I149: 缺考 | J149: 缺考 | K149: 缺考
A150: 5 | B150: 52003050154 | C150: 韦国电 | D150: 5223261******60415 | E150: 影像科影像技术技师 | F150: C05 | G150: 第一考场 | H150: =VLOOKUP(C:C,[1]sheet1!$E$1:$F$65536,2,FALSE) -> 80 | I150: 缺考 | J150: 缺考 | K150: 缺考
A151: 6 | B151: 52003050124 | C151: 李俊洁 | D151: 5329011******54927 | E151: 影像科影像技术技师 | F151: C05 | G151: 第一考场 | H151: =VLOOKUP(C:C,[1]sheet1!$E$1:$F$65536,2,FALSE) -> 65 | I151: 缺考 | J151: 缺考 | K151: 缺考
A152: 8 | B152: 52003050011 | C152: 周兰 | D152: 5224221******00125 | E152: 影像科影像技术技师 | F152: C05 | G152: 第一考场 | H152: =VLOOKUP(C:C,[1]sheet1!$E$1:$F$65536,2,FALSE) -> 106 | I152: 缺考 | J152: 缺考 | K152: 缺考
A153: 9 | B153: 52003050186 | C153: 任龙肖 | D153: 5221242******12420 | E153: 影像科影像技术技师 | F153: C05 | G153: 第一考场 | H153: =VLOOKUP(C:C,[1]sheet1!$E$1:$F$65536,2,FALSE) -> 40 | I153: 缺考 | J153: 缺考 | K153: 缺考
A154: 11 | B154: 52003050174 | C154: 马东汉 | D154: 5224271******11812 | E154: 影像科影像技术技师 | F154: C05 | G154: 第一考场 | H154: =VLOOKUP(C:C,[1]sheet1!$E$1:$F$65536,2,FALSE) -> 26 | I154: 缺考 | J154: 缺考 | K154: 缺考
A155: 12 | B155: 52003050195 | C155: 朱卫 | D155: 5224271******7764X | E155: 影像科影像技术技师 | F155: C05 | G155: 第一考场 | H155: =VLOOKUP(C:C,[1]sheet1!$E$1:$F$65536,2,FALSE) -> 124 | I155: 缺考 | J155: 缺考 | K155: 缺考
A156: 14 | B156: 52003050066 | C156: 李玲琳 | D156: 5224251******85425 | E156: 影像科影像技术技师 | F156: C05 | G156: 第一考场 | H156: =VLOOKUP(C:C,[1]sheet1!$E$1:$F$65536,2,FALSE) -> 98 | I156: 缺考 | J156: 缺考 | K156: 缺考
A157: 15 | B157: 52003050217 | C157: 龚玉霞 | D157: 5222221******00866 | E157: 影像科影像技术技师 | F157: C05 | G157: 第一考场 | H157: =VLOOKUP(C:C,[1]sheet1!$E$1:$F$65536,2,FALSE) -> 61 | I157: 缺考 | J157: 缺考 | K157: 缺考
A158: 16 | B158: 52003050095 | C158: 尚玉凤 | D158: 5201212******73820 | E158: 影像科影像技术技师 | F158: C05 | G158: 第一考场 | H158: =VLOOKUP(C:C,[1]sheet1!$E$1:$F$65536,2,FALSE) -> 132 | I158: 缺考 | J158: 缺考 | K158: 缺考
A159: 19 | B159: 52003050042 | C159: 周小洪 | D159: 5201812******1481X | E159: 影像科影像技术技师 | F159: C05 | G159: 第一考场 | H159: =VLOOKUP(C:C,[1]sheet1!$E$1:$F$65536,2,FALSE) -> 53 | I159: 缺考 | J159: 缺考 | K159: 缺考
A160: 20 | B160: 52003050144 | C160: 庄甜甜 | D160: 5225011******77364 | E160: 影像科影像技术技师 | F160: C05 | G160: 第一考场 | H160: =VLOOKUP(C:C,[1]sheet1!$E$1:$F$65536,2,FALSE) -> 45 | I160: 缺考 | J160: 缺考 | K160: 缺考
A161: 22 | B161: 52003050179 | C161: 杨金燕 | D161: 5221211******57827 | E161: 影像科影像技术技师 | F161: C05 | G161: 第一考场 | H161: =VLOOKUP(C:C,[1]sheet1!$E$1:$F$65536,2,FALSE) -> 20 | I161: 缺考 | J161: 缺考 | K161: 缺考
A162: 24 | B162: 52003050274 | C162: 钱梦思 | D162: 5224221******01829 | E162: 影像科影像技术技师 | F162: C05 | G162: 第一考场 | H162: =VLOOKUP(C:C,[1]sheet1!$E$1:$F$65536,2,FALSE) -> 16 | I162: 缺考 | J162: 缺考 | K162: 缺考
A163: 25 | B163: 52003050022 | C163: 郑焜 | D163: 5221211******73052 | E163: 影像科影像技术技师 | F163: C05 | G163: 第一考场 | H163: =VLOOKUP(C:C,[1]sheet1!$E$1:$F$65536,2,FALSE) -> 101 | I163: 缺考 | J163: 缺考 | K163: 缺考
A164: 27 | B164: 52003050105 | C164: 李奇 | D164: 5221271******17539 | E164: 影像科影像技术技师 | F164: C05 | G164: 第一考场 | H164: =VLOOKUP(C:C,[1]sheet1!$E$1:$F$65536,2,FALSE) -> 83 | I164: 缺考 | J164: 缺考 | K164: 缺考
A165: 28 | B165: 52003050216 | C165: 岳卫东 | D165: 5221241******72813 | E165: 影像科影像技术技师 | F165: C05 | G165: 第一考场 | H165: =VLOOKUP(C:C,[1]sheet1!$E$1:$F$65536,2,FALSE) -> 85 | I165: 缺考 | J165: 缺考 | K165: 缺考
A166: 30 | B166: 52003050309 | C166: 罗娅娟 | D166: 5303221******72829 | E166: 影像科影像技术技师 | F166: C05 | G166: 第一考场 | H166: =VLOOKUP(C:C,[1]sheet1!$E$1:$F$65536,2,FALSE) -> 57 | I166: 缺考 | J166: 缺考 | K166: 缺考
A167: 32 | B167: 52003050285 | C167: 袁丽 | D167: 5321302******22146 | E167: 影像科影像技术技师 | F167: C05 | G167: 第一考场 | H167: =VLOOKUP(C:C,[1]sheet1!$E$1:$F$65536,2,FALSE) -> 119 | I167: 缺考 | J167: 缺考 | K167: 缺考
A168: 33 | B168: 52003050312 | C168: 聂昌林 | D168: 5221301******52493 | E168: 影像科影像技术技师 | F168: C05 | G168: 第一考场 | H168: =VLOOKUP(C:C,[1]sheet1!$E$1:$F$65536,2,FALSE) -> 109 | I168: 缺考 | J168: 缺考 | K168: 缺考
A169: 34 | B169: 52003050082 | C169: 刘艳 | D169: 5224011******61520 | E169: 影像科影像技术技师 | F169: C05 | G169: 第一考场 | H169: =VLOOKUP(C:C,[1]sheet1!$E$1:$F$65536,2,FALSE) -> 131 | I169: 缺考 | J169: 缺考 | K169: 缺考
A170: 36 | B170: 52003050083 | C170: 冷琴 | D170: 5221271******12021 | E170: 影像科影像技术技师 | F170: C05 | G170: 第一考场 | H170: =VLOOKUP(C:C,[1]sheet1!$E$1:$F$65536,2,FALSE) -> 13 | I170: 缺考 | J170: 缺考 | K170: 缺考
A171: 39 | B171: 52003050156 | C171: 卢永灿 | D171: 5201212******70046 | E171: 影像科影像技术技师 | F171: C05 | G171: 第一考场 | H171: =VLOOKUP(C:C,[1]sheet1!$E$1:$F$65536,2,FALSE) -> 147 | I171: 缺考 | J171: 缺考 | K171: 缺考
A172: 40 | B172: 52003050249 | C172: 何炎雪 | D172: 5221211******0582X | E172: 影像科影像技术技师 | F172: C05 | G172: 第一考场 | H172: =VLOOKUP(C:C,[1]sheet1!$E$1:$F$65536,2,FALSE) -> 127 | I172: 缺考 | J172: 缺考 | K172: 缺考
A173: 41 | B173: 52003050233 | C173: 杨光英 | D173: 5226221******31020 | E173: 影像科影像技术技师 | F173: C05 | G173: 第一考场 | H173: =VLOOKUP(C:C,[1]sheet1!$E$1:$F$65536,2,FALSE) -> 10 | I173: 缺考 | J173: 缺考 | K173: 缺考
A174: 43 | B174: 52003050004 | C174: 张正林 | D174: 5221321******3003X | E174: 影像科影像技术技师 | F174: C05 | G174: 第一考场 | H174: =VLOOKUP(C:C,[1]sheet1!$E$1:$F$65536,2,FALSE) -> 84 | I174: 缺考 | J174: 缺考 | K174: 缺考
A175: 45 | B175: 52003050104 | C175: 张萌 | D175: 5304222******8034X | E175: 影像科影像技术技师 | F175: C05 | G175: 第一考场 | H175: =VLOOKUP(C:C,[1]sheet1!$E$1:$F$65536,2,FALSE) -> 8 | I175: 缺考 | J175: 缺考 | K175: 缺考
A176: 46 | B176: 52003050160 | C176: 王丽 | D176: 5202021******08620 | E176: 影像科影像技术技师 | F176: C05 | G176: 第一考场 | H176: =VLOOKUP(C:C,[1]sheet1!$E$1:$F$65536,2,FALSE) -> 114 | I176: 缺考 | J176: 缺考 | K176: 缺考
A177: 47 | B177: 52003050232 | C177: 蒋怀森 | D177: 5226282******70418 | E177: 影像科影像技术技师 | F177: C05 | G177: 第一考场 | H177: =VLOOKUP(C:C,[1]sheet1!$E$1:$F$65536,2,FALSE) -> 113 | I177: 缺考 | J177: 缺考 | K177: 缺考
A178: 50 | B178: 52003050311 | C178: 赵兵 | D178: 5221271******42537 | E178: 影像科影像技术技师 | F178: C05 | G178: 第一考场 | H178: =VLOOKUP(C:C,[1]sheet1!$E$1:$F$65536,2,FALSE) -> 70 | I178: 缺考 | J178: 缺考 | K178: 缺考
A179: 52 | B179: 52003050133 | C179: 李超 | D179: 5321011******61658 | E179: 影像科影像技术技师 | F179: C05 | G179: 第一考场 | H179: =VLOOKUP(C:C,[1]sheet1!$E$1:$F$65536,2,FALSE) -> 110 | I179: 缺考 | J179: 缺考 | K179: 缺考
A180: 54 | B180: 52003050203 | C180: 陶学美 | D180: 5227251******95527 | E180: 影像科影像技术技师 | F180: C05 | G180: 第一考场 | H180: =VLOOKUP(C:C,[1]sheet1!$E$1:$F$65536,2,FALSE) -> 3 | I180: 缺考 | J180: 缺考 | K180: 缺考
A181: 55 | B181: 52003050287 | C181: 王璐燕 | D181: 5226332******90022 | E181: 影像科影像技术技师 | F181: C05 | G181: 第一考场 | H181: =VLOOKUP(C:C,[1]sheet1!$E$1:$F$65536,2,FALSE) -> 102 | I181: 缺考 | J181: 缺考 | K181: 缺考
A182: 57 | B182: 52003050013 | C182: 王吉美 | D182: 5223251******72449 | E182: 影像科影像技术技师 | F182: C05 | G182: 第一考场 | H182: =VLOOKUP(C:C,[1]sheet1!$E$1:$F$65536,2,FALSE) -> 95 | I182: 缺考 | J182: 缺考 | K182: 缺考
A183: 59 | B183: 52003050032 | C183: 赵玲 | D183: 5224232******81921 | E183: 影像科影像技术技师 | F183: C05 | G183: 第一考场 | H183: =VLOOKUP(C:C,[1]sheet1!$E$1:$F$65536,2,FALSE) -> 78 | I183: 缺考 | J183: 缺考 | K183: 缺考
A184: 60 | B184: 52003050278 | C184: 张丽 | D184: 5306232******10028 | E184: 影像科影像技术技师 | F184: C05 | G184: 第一考场 | H184: =VLOOKUP(C:C,[1]sheet1!$E$1:$F$65536,2,FALSE) -> 121 | I184: 缺考 | J184: 缺考 | K184: 缺考
A185: 62 | B185: 52003050132 | C185: 吴秋池 | D185: 5222212******74626 | E185: 影像科影像技术技师 | F185: C05 | G185: 第一考场 | H185: =VLOOKUP(C:C,[1]sheet1!$E$1:$F$65536,2,FALSE) -> 149 | I185: 缺考 | J185: 缺考 | K185: 缺考
A186: 65 | B186: 52003050094 | C186: 杨坪 | D186: 5224252******33911 | E186: 影像科影像技术技师 | F186: C05 | G186: 第一考场 | H186: =VLOOKUP(C:C,[1]sheet1!$E$1:$F$65536,2,FALSE) -> 60 | I186: 缺考 | J186: 缺考 | K186: 缺考
A187: 66 | B187: 52003050200 | C187: 漆梅吉 | D187: 5224232******39342 | E187: 影像科影像技术技师 | F187: C05 | G187: 第一考场 | H187: =VLOOKUP(C:C,[1]sheet1!$E$1:$F$65536,2,FALSE) -> 136 | I187: 缺考 | J187: 缺考 | K187: 缺考
A188: 71 | B188: 52003050073 | C188: 杨树林 | D188: 5221261******51519 | E188: 影像科影像技术技师 | F188: C05 | G188: 第一考场 | H188: =VLOOKUP(C:C,[1]sheet1!$E$1:$F$65536,2,FALSE) -> 24 | I188: 缺考 | J188: 缺考 | K188: 缺考
A189: 80 | B189: 52003050241 | C189: 李娜 | D189: 5201212******50020 | E189: 影像科影像技术技师 | F189: C05 | G189: 第一考场 | H189: =VLOOKUP(C:C,[1]sheet1!$E$1:$F$65536,2,FALSE) -> 72 | I189: 缺考 | J189: 缺考 | K189: 缺考
A190: 81 | B190: 52003050196 | C190: 王定弦 | D190: 5221211******22232 | E190: 影像科影像技术技师 | F190: C05 | G190: 第一考场 | H190: =VLOOKUP(C:C,[1]sheet1!$E$1:$F$65536,2,FALSE) -> 134 | I190: 缺考 | J190: 缺考 | K190: 缺考
A191: 83 | B191: 52003050239 | C191: 代凯 | D191: 5224251******42478 | E191: 影像科影像技术技师 | F191: C05 | G191: 第一考场 | H191: =VLOOKUP(C:C,[1]sheet1!$E$1:$F$65536,2,FALSE) -> 27 | I191: 缺考 | J191: 缺考 | K191: 缺考
A192: 84 | B192: 52003050191 | C192: 田玲莉 | D192: 5222291******64820 | E192: 影像科影像技术技师 | F192: C05 | G192: 第一考场 | H192: =VLOOKUP(C:C,[1]sheet1!$E$1:$F$65536,2,FALSE) -> 92 | I192: 缺考 | J192: 缺考 | K192: 缺考
A193: 85 | B193: 52003050123 | C193: 张川兰 | D193: 5306291******21964 | E193: 影像科影像技术技师 | F193: C05 | G193: 第一考场 | H193: =VLOOKUP(C:C,[1]sheet1!$E$1:$F$65536,2,FALSE) -> 75 | I193: 缺考 | J193: 缺考 | K193: 缺考
A194: 86 | B194: 52003050300 | C194: 周小愈 | D194: 5227251******35822 | E194: 影像科影像技术技师 | F194: C05 | G194: 第一考场 | H194: =VLOOKUP(C:C,[1]sheet1!$E$1:$F$65536,2,FALSE) -> 116 | I194: 缺考 | J194: 缺考 | K194: 缺考
A195: 89 | B195: 52003050116 | C195: 陈三 | D195: 5202021******92847 | E195: 影像科影像技术技师 | F195: C05 | G195: 第一考场 | H195: =VLOOKUP(C:C,[1]sheet1!$E$1:$F$65536,2,FALSE) -> 81 | I195: 缺考 | J195: 缺考 | K195: 缺考
A196: 90 | B196: 52003050205 | C196: 魏娟 | D196: 5224221******81429 | E196: 影像科影像技术技师 | F196: C05 | G196: 第一考场 | H196: =VLOOKUP(C:C,[1]sheet1!$E$1:$F$65536,2,FALSE) -> 130 | I196: 缺考 | J196: 缺考 | K196: 缺考
A197: 91 | B197: 52003050076 | C197: 陈华建 | D197: 5226221******83517 | E197: 影像科影像技术技师 | F197: C05 | G197: 第一考场 | H197: =VLOOKUP(C:C,[1]sheet1!$E$1:$F$65536,2,FALSE) -> 89 | I197: 缺考 | J197: 缺考 | K197: 缺考
A198: 97 | B198: 52003050180 | C198: 苏娟 | D198: 5110231******36028 | E198: 影像科影像技术技师 | F198: C05 | G198: 第一考场 | H198: =VLOOKUP(C:C,[1]sheet1!$E$1:$F$65536,2,FALSE) -> 90 | I198: 缺考 | J198: 缺考 | K198: 缺考
A199: 102 | B199: 52003050280 | C199: 向焱华 | D199: 5203241******32817 | E199: 影像科影像技术技师 | F199: C05 | G199: 第一考场 | H199: =VLOOKUP(C:C,[1]sheet1!$E$1:$F$65536,2,FALSE) -> 62 | I199: 缺考 | J199: 缺考 | K199: 缺考
A200: 106 | B200: 52003050206 | C200: 孙雨倩 | D200: 5224012******27623 | E200: 影像科影像技术技师 | F200: C05 | G200: 第一考场 | H200: =VLOOKUP(C:C,[1]sheet1!$E$1:$F$65536,2,FALSE) -> 9 | I200: 缺考 | J200: 缺考 | K200: 缺考
... 90 more rows

Sheet C06影像科信息网络工程师
A1: 序号 | B1: 报名序号 | C1: 姓名 | D1: 身份证号 | E1: 岗位名称 | F1: 岗位代码 | G1: 抽签号 | H1: 面试成绩 | I1: 是否进入资格复审
A2: 364 | B2: 52003060004 | C2: 王裕龙 | D2: 5221312******61511 | E2: 影像科信息网络工程师 | F2: C06 | G2: =VLOOKUP(C:C,[5]sheet1!$E$1:$F$65536,2,FALSE) -> 4 | H2: =VLOOKUP(G:G,[6]Sheet1!$A:$I,9,FALSE) -> 80.33 | I2: 是
A3: 367 | B3: 52003060024 | C3: 李春 | D3: 5224221******1322X | E3: 影像科信息网络工程师 | F3: C06 | G3: =VLOOKUP(C:C,[5]sheet1!$E$1:$F$65536,2,FALSE) -> 6 | H3: =VLOOKUP(G:G,[6]Sheet1!$A:$I,9,FALSE) -> 80.00
A4: 361 | B4: 52003060002 | C4: 李江虎 | D4: 5225261******81010 | E4: 影像科信息网络工程师 | F4: C06 | G4: =VLOOKUP(C:C,[5]sheet1!$E$1:$F$65536,2,FALSE) -> 8 | H4: =VLOOKUP(G:G,[6]Sheet1!$A:$I,9,FALSE) -> 78.67
A5: 365 | B5: 52003060023 | C5: 彭兵兵 | D5: 5224252******00913 | E5: 影像科信息网络工程师 | F5: C06 | G5: =VLOOKUP(C:C,[5]sheet1!$E$1:$F$65536,2,FALSE) -> 2 | H5: =VLOOKUP(G:G,[6]Sheet1!$A:$I,9,FALSE) -> 65.00
A6: 360 | B6: 52003060012 | C6: 王思博 | D6: 5223211******30413 | E6: 影像科信息网络工程师 | F6: C06 | G6: =VLOOKUP(C:C,[5]sheet1!$E$1:$F$65536,2,FALSE) -> 5 | H6: =VLOOKUP(G:G,[6]Sheet1!$A:$I,9,FALSE) -> 62.00
A7: 362 | B7: 52003060022 | C7: 马恒 | D7: 5224271******6743X | E7: 影像科信息网络工程师 | F7: C06 | G7: =VLOOKUP(C:C,[5]sheet1!$E$1:$F$65536,2,FALSE) -> 7 | H7: 缺考
A8: 363 | B8: 52003060009 | C8: 陈金良 | D8: 5202021******52431 | E8: 影像科信息网络工程师 | F8: C06 | G8: =VLOOKUP(C:C,[5]sheet1!$E$1:$F$65536,2,FALSE) -> 1 | H8: 缺考
A9: 366 | B9: 52003060006 | C9: 路逊 | D9: 5224281******13619 | E9: 影像科信息网络工程师 | F9: C06 | G9: =VLOOKUP(C:C,[5]sheet1!$E$1:$F$65536,2,FALSE) -> 3 | H9: 缺考
